[Event "Late-Titled-Tuesday-Blitz-April-02-2024"]
[Site "Chess.com"]
[Date "2024.04.02"]
[Round "9"]
[White "N_Mullodzhanov"]
[Black "wild3000"]
[Result "0-1"]
[WhiteElo "2537"]
[BlackElo "2422"]
[TimeControl "180+1"]
[EndTime "15:43:53 PDT"]
[Termination "wild3000 won by checkmate"]

1. e4 {[%clk 0:03:00.9]} 1... c5 {[%clk 0:02:45.4]} 2. c3 {[%clk 0:03:00.3]}
2... e6 {[%clk 0:02:43.5]} 3. Nf3 {[%clk 0:02:59.9]} 3... d5 {[%clk 0:02:42.8]}
4. exd5 {[%clk 0:03:00.8]} 4... Qxd5 {[%clk 0:02:40]} 5. d4 {[%clk 0:03:00.5]}
5... Nf6 {[%clk 0:02:40]} 6. Nbd2 {[%clk 0:02:53.7]} 6... Nc6 {[%clk 0:02:35.9]}
7. Bc4 {[%clk 0:02:53.6]} 7... Qd8 {[%clk 0:02:35.5]} 8. Nb3 {[%clk 0:02:51.5]}
8... cxd4 {[%clk 0:02:34]} 9. Nbxd4 {[%clk 0:02:50.4]} 9... Bd7 {[%clk
0:02:33.1]} 10. O-O {[%clk 0:02:50]} 10... Be7 {[%clk 0:02:30.9]} 11. Re1 {[%clk
0:02:43.2]} 11... O-O {[%clk 0:02:27.6]} 12. Qc2 {[%clk 0:02:43]} 12... Rc8
{[%clk 0:02:24.7]} 13. Bf1 {[%clk 0:02:32]} 13... Nxd4 {[%clk 0:02:06.3]} 14.
Nxd4 {[%clk 0:02:32.9]} 14... Nd5 {[%clk 0:01:52.6]} 15. Bd2 {[%clk 0:02:24.8]}
15... Bg5 {[%clk 0:01:46.5]} 16. g3 {[%clk 0:02:21.8]} 16... Bxd2 {[%clk
0:01:41.6]} 17. Qxd2 {[%clk 0:02:21.8]} 17... Qc7 {[%clk 0:01:31.8]} 18. Bg2
{[%clk 0:02:21.5]} 18... Nf6 {[%clk 0:01:28.8]} 19. h4 {[%clk 0:02:21.6]} 19...
Rfd8 {[%clk 0:01:27.5]} 20. Rad1 {[%clk 0:02:21.3]} 20... e5 {[%clk 0:01:22.8]}
21. Nf3 {[%clk 0:02:18.4]} 21... Ba4 {[%clk 0:01:18.2]} 22. Qe2 {[%clk
0:02:14.5]} 22... Bxd1 {[%clk 0:01:17.3]} 23. Rxd1 {[%clk 0:02:15.4]} 23...
Rxd1+ {[%clk 0:01:16.9]} 24. Qxd1 {[%clk 0:02:15.8]} 24... h6 {[%clk 0:01:11.8]}
25. Qe2 {[%clk 0:02:13.7]} 25... Re8 {[%clk 0:01:10.5]} 26. Nd2 {[%clk
0:02:11.8]} 26... a6 {[%clk 0:01:08.9]} 27. Kh2 {[%clk 0:02:07.2]} 27... b5
{[%clk 0:01:07]} 28. a4 {[%clk 0:02:02.7]} 28... Qb6 {[%clk 0:01:01.3]} 29. axb5
{[%clk 0:01:59.2]} 29... axb5 {[%clk 0:01:02.2]} 30. Bf3 {[%clk 0:01:50.9]}
30... e4 {[%clk 0:00:54.3]} 31. Nxe4 {[%clk 0:01:45.1]} 31... Nxe4 {[%clk
0:00:52.1]} 32. Bxe4 {[%clk 0:01:46]} 32... Qe6 {[%clk 0:00:51.4]} 33. f3 {[%clk
0:01:44.5]} 33... Qe5 {[%clk 0:00:42.9]} 34. Kh3 {[%clk 0:01:38.3]} 34... g6
{[%clk 0:00:42.7]} 35. Qe3 {[%clk 0:01:33.3]} 35... Kg7 {[%clk 0:00:42.2]} 36.
Qd2 {[%clk 0:01:28.8]} 36... f5 {[%clk 0:00:37.9]} 37. Bc2 {[%clk 0:01:22.3]}
37... Re7 {[%clk 0:00:35.2]} 38. Bd3 {[%clk 0:01:19]} 38... Rd7 {[%clk
0:00:32.5]} 39. Qc2 {[%clk 0:01:11.6]} 39... Qe1 {[%clk 0:00:27]} 40. Kh2 {[%clk
0:01:03.4]} 40... f4 {[%clk 0:00:21.9]} 41. gxf4 {[%clk 0:00:59.6]} 41... Qxh4+
{[%clk 0:00:21.8]} 42. Kg2 {[%clk 0:00:59.2]} 42... Qxf4 {[%clk 0:00:21.4]} 43.
c4 {[%clk 0:00:57.1]} 43... b4 {[%clk 0:00:20.6]} 44. Qe2 {[%clk 0:00:53.7]}
44... Qg5+ {[%clk 0:00:16.6]} 45. Kf2 {[%clk 0:00:53]} 45... Re7 {[%clk
0:00:17.1]} 46. Be4 {[%clk 0:00:51.8]} 46... h5 {[%clk 0:00:15.5]} 47. Qd3
{[%clk 0:00:50.8]} 47... h4 {[%clk 0:00:13.5]} 48. Qd4+ {[%clk 0:00:36.3]} 48...
Qe5 {[%clk 0:00:13.2]} 49. Qxe5+ {[%clk 0:00:32.7]} 49... Rxe5 {[%clk
0:00:14.1]} 50. Kg2 {[%clk 0:00:33.2]} 50... g5 {[%clk 0:00:13.5]} 51. Kh3
{[%clk 0:00:32.9]} 51... Kf6 {[%clk 0:00:13.5]} 52. Kg4 {[%clk 0:00:29.4]} 52...
Ra5 {[%clk 0:00:12.7]} 53. f4 {[%clk 0:00:20.7]} 53... gxf4 {[%clk 0:00:11.3]}
54. Kxf4 {[%clk 0:00:20.1]} 54... Ra2 {[%clk 0:00:10.8]} 55. b3 {[%clk
0:00:20.2]} 55... Rb2 {[%clk 0:00:10.1]} 56. c5 {[%clk 0:00:19.1]} 56... Rxb3
{[%clk 0:00:09.6]} 57. c6 {[%clk 0:00:19.4]} 57... Rc3 {[%clk 0:00:09.8]} 58.
Kg4 {[%clk 0:00:20]} 58... Ke5 {[%clk 0:00:08.9]} 59. Bb1 {[%clk 0:00:13.8]}
59... h3 {[%clk 0:00:08.6]} 60. c7 {[%clk 0:00:13.1]} 60... Rxc7 {[%clk
0:00:07.8]} 61. Kxh3 {[%clk 0:00:13.2]} 61... Rc1 {[%clk 0:00:07.3]} 62. Bh7
{[%clk 0:00:12.7]} 62... Rh1+ {[%clk 0:00:06.3]} 63. Kg2 {[%clk 0:00:13.4]}
63... Rxh7 {[%clk 0:00:06]} 64. Kf2 {[%clk 0:00:14.3]} 64... Rd7 {[%clk
0:00:05.3]} 65. Ke2 {[%clk 0:00:15.2]} 65... b3 {[%clk 0:00:05.8]} 66. Ke3
{[%clk 0:00:16.1]} 66... b2 {[%clk 0:00:06.4]} 67. Ke2 {[%clk 0:00:17]} 67...
b1=Q {[%clk 0:00:06.5]} 68. Kf3 {[%clk 0:00:17.9]} 68... Qb3+ {[%clk 0:00:06.7]}
69. Kg4 {[%clk 0:00:18.1]} 69... Rg7+ {[%clk 0:00:06.9]} 70. Kh5 {[%clk
0:00:18.6]} 70... Qh3# {[%clk 0:00:06.8]} 0-1

[Event "Late-Titled-Tuesday-Blitz-April-02-2024"]
[Site "Chess.com"]
[Date "2024.04.02"]
[Round "9"]
[White "Jospem"]
[Black "stollenmonster"]
[Result "0-1"]
[WhiteElo "3026"]
[BlackElo "2877"]
[TimeControl "180+1"]
[EndTime "15:43:58 PDT"]
[Termination "stollenmonster won by resignation"]

1. e4 {[%clk 0:03:00.9]} 1... c5 {[%clk 0:02:59.8]} 2. Nf3 {[%clk 0:03:01]} 2...
Nf6 {[%clk 0:03:00.3]} 3. e5 {[%clk 0:02:56.3]} 3... Nd5 {[%clk 0:03:00.8]} 4.
Nc3 {[%clk 0:02:57.2]} 4... e6 {[%clk 0:03:01.3]} 5. g3 {[%clk 0:02:54.5]} 5...
d6 {[%clk 0:03:01.1]} 6. exd6 {[%clk 0:02:54]} 6... Bxd6 {[%clk 0:03:02]} 7. Bg2
{[%clk 0:02:54.6]} 7... O-O {[%clk 0:03:02.7]} 8. O-O {[%clk 0:02:55]} 8... Nc6
{[%clk 0:03:03.3]} 9. d4 {[%clk 0:02:54.4]} 9... Nxc3 {[%clk 0:02:59.9]} 10.
bxc3 {[%clk 0:02:55.3]} 10... Qc7 {[%clk 0:02:53.1]} 11. d5 {[%clk 0:02:46.6]}
11... exd5 {[%clk 0:02:52.4]} 12. Qxd5 {[%clk 0:02:47.5]} 12... Be6 {[%clk
0:02:52.5]} 13. Qh5 {[%clk 0:02:48.1]} 13... Rfe8 {[%clk 0:02:44.7]} 14. Be3
{[%clk 0:02:38.2]} 14... h6 {[%clk 0:02:31.1]} 15. Nh4 {[%clk 0:02:16.5]} 15...
Qc8 {[%clk 0:02:12.8]} 16. Rab1 {[%clk 0:01:58.5]} 16... Rb8 {[%clk 0:02:02.5]}
17. Bxc5 {[%clk 0:01:44.8]} 17... Bxc5 {[%clk 0:01:43.6]} 18. Qxc5 {[%clk
0:01:45.7]} 18... Bxa2 {[%clk 0:01:43.7]} 19. Ra1 {[%clk 0:01:40.2]} 19... Re5
{[%clk 0:01:36.4]} 20. Qd6 {[%clk 0:01:30.9]} 20... Re6 {[%clk 0:01:28.2]} 21.
Qf4 {[%clk 0:01:24.5]} 21... Rf6 {[%clk 0:01:17.8]} 22. Qe3 {[%clk 0:01:24.8]}
22... Be6 {[%clk 0:01:10.7]} 23. Rfd1 {[%clk 0:01:25.1]} 23... Bh3 {[%clk
0:01:09.7]} 24. Nf3 {[%clk 0:01:18.1]} 24... Bxg2 {[%clk 0:01:02.6]} 25. Kxg2
{[%clk 0:01:19]} 25... Qf5 {[%clk 0:01:01.9]} 26. Rd2 {[%clk 0:01:12.4]} 26...
Re6 {[%clk 0:00:59.1]} 27. Qd3 {[%clk 0:01:10.9]} 27... Qc5 {[%clk 0:00:57.7]}
28. Nd4 {[%clk 0:00:58.8]} 28... Rd6 {[%clk 0:00:55.4]} 29. Qe4 {[%clk
0:00:49.6]} 29... Qxc3 {[%clk 0:00:45.3]} 30. Rad1 {[%clk 0:00:43.3]} 30... Qc4
{[%clk 0:00:30.3]} 31. Qe3 {[%clk 0:00:09.8]} 31... Rbd8 {[%clk 0:00:28.1]} 32.
Nf3 {[%clk 0:00:09.3]} 32... Rxd2 {[%clk 0:00:22.6]} 33. Rxd2 {[%clk 0:00:10.2]}
33... Rxd2 {[%clk 0:00:22.5]} 34. Qxd2 {[%clk 0:00:11.1]} 34... a5 {[%clk
0:00:22.1]} 35. Qd7 {[%clk 0:00:11.1]} 35... Qxc2 {[%clk 0:00:15.6]} 36. Qc8+
{[%clk 0:00:06.7]} 36... Kh7 {[%clk 0:00:15.4]} 37. Qxb7 {[%clk 0:00:07.4]}
37... Qe4 {[%clk 0:00:15.4]} 38. h4 {[%clk 0:00:04]} 38... a4 {[%clk 0:00:14.7]}
39. h5 {[%clk 0:00:04.6]} 39... a3 {[%clk 0:00:14.2]} 40. Qxf7 {[%clk
0:00:05.1]} 40... Ne5 {[%clk 0:00:08]} 41. Qa2 {[%clk 0:00:05.7]} 41... Qxf3+
{[%clk 0:00:07.8]} 42. Kg1 {[%clk 0:00:06.6]} 42... Qd1+ {[%clk 0:00:07.4]} 43.
Kg2 {[%clk 0:00:06.5]} 43... Qf3+ {[%clk 0:00:07]} 44. Kg1 {[%clk 0:00:07.1]}
44... Qxh5 {[%clk 0:00:07.6]} 45. Qxa3 {[%clk 0:00:07.2]} 45... Qd1+ {[%clk
0:00:06.5]} 46. Kg2 {[%clk 0:00:07.8]} 46... Qd5+ {[%clk 0:00:07.2]} 47. Kg1
{[%clk 0:00:08.5]} 47... Nf3+ {[%clk 0:00:07.4]} 48. Kf1 {[%clk 0:00:08.7]}
48... Nd2+ {[%clk 0:00:06.6]} 49. Kg1 {[%clk 0:00:08.8]} 49... Ne4 {[%clk
0:00:06.6]} 50. Qe3 {[%clk 0:00:08]} 50... Qf5 {[%clk 0:00:06.7]} 51. Kg2 {[%clk
0:00:06.7]} 51... Ng5 {[%clk 0:00:06.6]} 52. f3 {[%clk 0:00:07.3]} 52... Qc2+
{[%clk 0:00:06.2]} 53. Kg1 {[%clk 0:00:07.2]} 53... Nh3+ {[%clk 0:00:06.4]} 54.
Kf1 {[%clk 0:00:07.2]} 54... Ng5 {[%clk 0:00:06.5]} 55. Kg1 {[%clk 0:00:07]}
55... Nh3+ {[%clk 0:00:06.4]} 56. Kf1 {[%clk 0:00:07.5]} 56... Qf5 {[%clk
0:00:06.4]} 57. Kg2 {[%clk 0:00:07.8]} 57... h5 {[%clk 0:00:06.4]} 58. f4 {[%clk
0:00:06.3]} 58... h4 {[%clk 0:00:06.4]} 59. Qf3 {[%clk 0:00:03.7]} 59... Kh6
{[%clk 0:00:04.8]} 60. g4 {[%clk 0:00:03.7]} 60... Nxf4+ {[%clk 0:00:04.1]} 61.
Kh2 {[%clk 0:00:04]} 61... Qe5 {[%clk 0:00:04]} 62. Kh1 {[%clk 0:00:04.3]} 62...
Ng6 {[%clk 0:00:03.9]} 63. Qa8 {[%clk 0:00:03.9]} 63... Qe1+ {[%clk 0:00:03.7]}
64. Kg2 {[%clk 0:00:04.5]} 64... Qg3+ {[%clk 0:00:04.1]} 65. Kh1 {[%clk
0:00:05.4]} 65... Qxg4 {[%clk 0:00:04.2]} 66. Qg8 {[%clk 0:00:05.5]} 66... h3
{[%clk 0:00:03.9]} 67. Qd5 {[%clk 0:00:05.5]} 67... Qg2+ {[%clk 0:00:04.1]} 68.
Qxg2 {[%clk 0:00:06.1]} 68... hxg2+ {[%clk 0:00:04.9]} 69. Kxg2 {[%clk
0:00:06.9]} 69... Kg5 {[%clk 0:00:05.6]} 70. Kg3 {[%clk 0:00:07.8]} 70... Ne7
{[%clk 0:00:06.3]} 0-1

[Event "Late-Titled-Tuesday-Blitz-April-02-2024"]
[Site "Chess.com"]
[Date "2024.04.02"]
[Round "9"]
[White "grandcoach"]
[Black "Savagelittlemole"]
[Result "1/2-1/2"]
[WhiteElo "2284"]
[BlackElo "2498"]
[TimeControl "180+1"]
[EndTime "15:44:10 PDT"]
[Termination "Game drawn - insufficient material"]

1. e4 {[%clk 0:02:56.7]} 1... c5 {[%clk 0:02:59.2]} 2. b4 {[%clk 0:02:55.7]}
2... cxb4 {[%clk 0:02:58.9]} 3. a3 {[%clk 0:02:56.3]} 3... d5 {[%clk 0:02:57.6]}
4. exd5 {[%clk 0:02:55.7]} 4... Nf6 {[%clk 0:02:57.5]} 5. axb4 {[%clk
0:02:54.6]} 5... Nxd5 {[%clk 0:02:57.1]} 6. b5 {[%clk 0:02:55.1]} 6... e5 {[%clk
0:02:53.4]} 7. Bb2 {[%clk 0:02:50.9]} 7... Bd6 {[%clk 0:02:46.1]} 8. Nf3 {[%clk
0:02:40.7]} 8... f6 {[%clk 0:02:38.8]} 9. Bc4 {[%clk 0:02:39.1]} 9... Be6 {[%clk
0:02:38.8]} 10. O-O {[%clk 0:02:26.8]} 10... O-O {[%clk 0:02:34]} 11. Nc3 {[%clk
0:02:26.7]} 11... Nf4 {[%clk 0:02:26.6]} 12. Bxe6+ {[%clk 0:02:24.7]} 12... Nxe6
{[%clk 0:02:27.5]} 13. Ne4 {[%clk 0:02:13.4]} 13... Bc7 {[%clk 0:02:18.1]} 14.
Ba3 {[%clk 0:02:09.4]} 14... Rf7 {[%clk 0:02:17.7]} 15. Re1 {[%clk 0:01:53]}
15... Nd7 {[%clk 0:02:14.9]} 16. d4 {[%clk 0:01:47.2]} 16... Nxd4 {[%clk
0:02:02.8]} 17. Nxd4 {[%clk 0:01:47.7]} 17... exd4 {[%clk 0:02:03.7]} 18. Qxd4
{[%clk 0:01:46.2]} 18... Be5 {[%clk 0:01:53.7]} 19. Qd5 {[%clk 0:01:30]} 19...
Nb6 {[%clk 0:01:53.5]} 20. Qxd8+ {[%clk 0:01:24.4]} 20... Rxd8 {[%clk
0:01:54.4]} 21. Rad1 {[%clk 0:01:22.5]} 21... Rfd7 {[%clk 0:01:45.4]} 22. Rxd7
{[%clk 0:01:19.6]} 22... Rxd7 {[%clk 0:01:46.3]} 23. Nc5 {[%clk 0:01:16.6]}
23... Rd2 {[%clk 0:01:35.9]} 24. Nxb7 {[%clk 0:01:03.9]} 24... Rxc2 {[%clk
0:01:35.2]} 25. Bd6 {[%clk 0:01:01.2]} 25... Nc4 {[%clk 0:01:21.5]} 26. Bxe5
{[%clk 0:00:58.5]} 26... Nxe5 {[%clk 0:01:22.4]} 27. Nd6 {[%clk 0:00:39.6]}
27... Rc5 {[%clk 0:01:13.7]} 28. f4 {[%clk 0:00:36.7]} 28... Nd7 {[%clk
0:01:04.9]} 29. Re8+ {[%clk 0:00:35.9]} 29... Nf8 {[%clk 0:01:05.5]} 30. f5
{[%clk 0:00:31]} 30... Rd5 {[%clk 0:00:58.6]} 31. Nc8 {[%clk 0:00:25.2]} 31...
Rxb5 {[%clk 0:00:51.8]} 32. Nxa7 {[%clk 0:00:20.6]} 32... Rxf5 {[%clk
0:00:47.3]} 33. Nc6 {[%clk 0:00:18.5]} 33... Kf7 {[%clk 0:00:41.2]} 34. Re7+
{[%clk 0:00:15.8]} 34... Kg6 {[%clk 0:00:41.6]} 35. Nd4 {[%clk 0:00:12.8]} 35...
Rd5 {[%clk 0:00:39]} 36. Ne6 {[%clk 0:00:10.1]} 36... Nxe6 {[%clk 0:00:32.2]}
37. Rxe6 {[%clk 0:00:11]} 37... Rd2 {[%clk 0:00:25.8]} 38. h3 {[%clk 0:00:10.7]}
38... h5 {[%clk 0:00:22.5]} 39. Re7 {[%clk 0:00:10.9]} 39... Kh6 {[%clk
0:00:22.2]} 40. Kh2 {[%clk 0:00:11]} 40... h4 {[%clk 0:00:20.8]} 41. Rf7 {[%clk
0:00:10.9]} 41... Rf2 {[%clk 0:00:17.8]} 42. Rf8 {[%clk 0:00:10.4]} 42... g6
{[%clk 0:00:16.3]} 43. Rf7 {[%clk 0:00:09.4]} 43... Kg5 {[%clk 0:00:16.8]} 44.
Rd7 {[%clk 0:00:08.7]} 44... f5 {[%clk 0:00:17]} 45. Rd6 {[%clk 0:00:08.6]}
45... Re2 {[%clk 0:00:15.9]} 46. Rc6 {[%clk 0:00:08]} 46... Kh5 {[%clk
0:00:15.7]} 47. Rd6 {[%clk 0:00:07.2]} 47... g5 {[%clk 0:00:14.6]} 48. Rf6
{[%clk 0:00:06.9]} 48... Rf2 {[%clk 0:00:14.8]} 49. Kg1 {[%clk 0:00:06.8]} 49...
Rf4 {[%clk 0:00:15.4]} 50. Kh2 {[%clk 0:00:06]} 50... g4 {[%clk 0:00:15.7]} 51.
hxg4+ {[%clk 0:00:05.6]} 51... Kxg4 {[%clk 0:00:15.3]} 52. Rg6+ {[%clk
0:00:05.2]} 52... Kh5 {[%clk 0:00:15.3]} 53. Rg8 {[%clk 0:00:05.4]} 53... Rf2
{[%clk 0:00:14.9]} 54. Rg7 {[%clk 0:00:04.9]} 54... f4 {[%clk 0:00:14]} 55. Kg1
{[%clk 0:00:05.2]} 55... Rb2 {[%clk 0:00:14]} 56. Rg8 {[%clk 0:00:05.5]} 56...
h3 {[%clk 0:00:08.5]} 57. gxh3 {[%clk 0:00:04.9]} 57... f3 {[%clk 0:00:07.2]}
58. Kf1 {[%clk 0:00:03.3]} 58... Kh4 {[%clk 0:00:06.8]} 59. Rf8 {[%clk
0:00:02.9]} 59... Kg3 {[%clk 0:00:06.6]} 60. Rg8+ {[%clk 0:00:03]} 60... Kxh3
{[%clk 0:00:07.3]} 61. Rf8 {[%clk 0:00:03.3]} 61... Kg3 {[%clk 0:00:06.8]} 62.
Rg8+ {[%clk 0:00:03.6]} 62... Kf4 {[%clk 0:00:07.5]} 63. Rf8+ {[%clk 0:00:03.8]}
63... Ke4 {[%clk 0:00:08.1]} 64. Re8+ {[%clk 0:00:04]} 64... Kd3 {[%clk
0:00:08]} 65. Rf8 {[%clk 0:00:04]} 65... Rb1+ {[%clk 0:00:08.1]} 66. Kf2 {[%clk
0:00:02.5]} 66... Ke4 {[%clk 0:00:08.5]} 67. Re8+ {[%clk 0:00:02]} 67... Kf4
{[%clk 0:00:09]} 68. Rf8+ {[%clk 0:00:02.6]} 68... Kg4 {[%clk 0:00:09.7]} 69.
Rg8+ {[%clk 0:00:03.1]} 69... Kf5 {[%clk 0:00:09.5]} 70. Rf8+ {[%clk 0:00:03.4]}
70... Kg6 {[%clk 0:00:09.1]} 71. Rxf3 {[%clk 0:00:03.3]} 71... Rb2+ {[%clk
0:00:08.8]} 72. Kg3 {[%clk 0:00:03.9]} 72... Rb5 {[%clk 0:00:08]} 73. Re3 {[%clk
0:00:04.5]} 73... Rg5+ {[%clk 0:00:08.1]} 74. Kf2 {[%clk 0:00:03.9]} 74... Rf5+
{[%clk 0:00:08.6]} 75. Ke2 {[%clk 0:00:04.5]} 75... Kf6 {[%clk 0:00:08.7]} 76.
Rf3 {[%clk 0:00:04.8]} 76... Rxf3 {[%clk 0:00:08.9]} 77. Kxf3 {[%clk 0:00:05.7]}
1/2-1/2

[Event "Late-Titled-Tuesday-Blitz-April-02-2024"]
[Site "Chess.com"]
[Date "2024.04.02"]
[Round "9"]
[White "dolynachess"]
[Black "Godzillator"]
[Result "1-0"]
[WhiteElo "2548"]
[BlackElo "2413"]
[TimeControl "180+1"]
[EndTime "15:44:11 PDT"]
[Termination "dolynachess won on time"]

1. d4 {[%clk 0:03:00.9]} 1... Nf6 {[%clk 0:02:58.9]} 2. c4 {[%clk 0:03:00.6]}
2... e6 {[%clk 0:02:58.8]} 3. g3 {[%clk 0:03:00.1]} 3... d5 {[%clk 0:02:58.6]}
4. Bg2 {[%clk 0:03:00.4]} 4... c6 {[%clk 0:02:59.1]} 5. Nf3 {[%clk 0:03:00.9]}
5... Be7 {[%clk 0:02:59.6]} 6. O-O {[%clk 0:03:01.6]} 6... O-O {[%clk
0:02:59.7]} 7. Nc3 {[%clk 0:03:02.1]} 7... Nbd7 {[%clk 0:02:59.5]} 8. Qd3 {[%clk
0:03:00.6]} 8... b6 {[%clk 0:02:58.6]} 9. Rd1 {[%clk 0:03:00]} 9... Bb7 {[%clk
0:02:57.9]} 10. e4 {[%clk 0:02:59.7]} 10... dxe4 {[%clk 0:02:55.8]} 11. Nxe4
{[%clk 0:03:00.6]} 11... Rc8 {[%clk 0:02:55.5]} 12. Bf4 {[%clk 0:02:54]} 12...
Nxe4 {[%clk 0:02:55.4]} 13. Qxe4 {[%clk 0:02:54.9]} 13... Ba8 {[%clk 0:02:55.7]}
14. Qe2 {[%clk 0:02:46.2]} 14... Nf6 {[%clk 0:02:50.1]} 15. Ne5 {[%clk
0:02:41.3]} 15... Qe8 {[%clk 0:02:42.2]} 16. a3 {[%clk 0:02:26.5]} 16... Nd7
{[%clk 0:02:41.9]} 17. Nd3 {[%clk 0:02:09.9]} 17... Bf6 {[%clk 0:02:39.1]} 18.
Bd6 {[%clk 0:02:06.4]} 18... Be7 {[%clk 0:02:38.2]} 19. Bf4 {[%clk 0:02:00.9]}
19... Bf6 {[%clk 0:02:37.8]} 20. Ne5 {[%clk 0:01:48]} 20... Nxe5 {[%clk
0:02:34.7]} 21. dxe5 {[%clk 0:01:45.8]} 21... Be7 {[%clk 0:02:34.1]} 22. Rd2
{[%clk 0:01:35.8]} 22... Rd8 {[%clk 0:02:34.2]} 23. Rad1 {[%clk 0:01:35.3]}
23... Rxd2 {[%clk 0:02:34.1]} 24. Qxd2 {[%clk 0:01:32.3]} 24... Qb8 {[%clk
0:02:31.7]} 25. Bg5 {[%clk 0:01:27.9]} 25... Bxg5 {[%clk 0:02:11.2]} 26. Qxg5
{[%clk 0:01:27.2]} 26... h6 {[%clk 0:02:04.2]} 27. Qe7 {[%clk 0:01:25]} 27...
Re8 {[%clk 0:01:50.4]} 28. Qd7 {[%clk 0:01:12.1]} 28... c5 {[%clk 0:01:36.6]}
29. Bxa8 {[%clk 0:01:07.4]} 29... Qxa8 {[%clk 0:01:36.9]} 30. Rd6 {[%clk
0:01:04.4]} 30... Rf8 {[%clk 0:01:32.9]} 31. h4 {[%clk 0:00:45.4]} 31... Qe4
{[%clk 0:01:32.3]} 32. Qxa7 {[%clk 0:00:42.2]} 32... Qb1+ {[%clk 0:01:27.7]} 33.
Kg2 {[%clk 0:00:39.3]} 33... Qxb2 {[%clk 0:01:27.9]} 34. Qxb6 {[%clk 0:00:28.6]}
34... Qxa3 {[%clk 0:01:26.8]} 35. Rc6 {[%clk 0:00:15.4]} 35... Qc3 {[%clk
0:00:42.6]} 36. Qxc5 {[%clk 0:00:14.1]} 36... Rd8 {[%clk 0:00:39.9]} 37. Rc8
{[%clk 0:00:13.6]} 37... Rxc8 {[%clk 0:00:38.3]} 38. Qxc8+ {[%clk 0:00:14.5]}
38... Kh7 {[%clk 0:00:38.8]} 39. Qc5 {[%clk 0:00:14.4]} 39... h5 {[%clk
0:00:37.1]} 40. Kg1 {[%clk 0:00:10.9]} 40... Qe1+ {[%clk 0:00:35.2]} 41. Kh2
{[%clk 0:00:10.7]} 41... Qe2 {[%clk 0:00:35.6]} 42. Kg2 {[%clk 0:00:09.8]} 42...
Qe4+ {[%clk 0:00:35.2]} 43. Kh2 {[%clk 0:00:09.8]} 43... Qe2 {[%clk 0:00:35.4]}
44. Qd4 {[%clk 0:00:07.4]} 44... g6 {[%clk 0:00:32.7]} 45. c5 {[%clk 0:00:07.3]}
45... Qf3 {[%clk 0:00:31.7]} 46. Kg1 {[%clk 0:00:05.1]} 46... g5 {[%clk
0:00:28.8]} 47. hxg5 {[%clk 0:00:04.6]} 47... Kg6 {[%clk 0:00:29]} 48. Qc4
{[%clk 0:00:04.2]} 48... Qd1+ {[%clk 0:00:24.5]} 49. Kg2 {[%clk 0:00:04.5]}
49... h4 {[%clk 0:00:20.4]} 50. c6 {[%clk 0:00:03.9]} 50... h3+ {[%clk 0:00:19]}
51. Kxh3 {[%clk 0:00:04]} 51... Qh1+ {[%clk 0:00:18.8]} 52. Kg4 {[%clk
0:00:04.3]} 52... Qd1+ {[%clk 0:00:15.8]} 53. Kf4 {[%clk 0:00:03]} 53... Qd2+
{[%clk 0:00:15.9]} 54. Kf3 {[%clk 0:00:02.9]} 54... Qd1+ {[%clk 0:00:15]} 55.
Kg2 {[%clk 0:00:02.9]} 55... Qe1 {[%clk 0:00:13.7]} 56. c7 {[%clk 0:00:02.6]}
56... Qxe5 {[%clk 0:00:06.4]} 57. c8=Q {[%clk 0:00:02.1]} 57... Qf5 {[%clk
0:00:06.7]} 58. Q8c6 {[%clk 0:00:02.8]} 58... Qxg5 {[%clk 0:00:06.3]} 59. Qf3
{[%clk 0:00:03.3]} 59... Qe5 {[%clk 0:00:04.7]} 60. Qh4 {[%clk 0:00:04.2]} 60...
f5 {[%clk 0:00:04.3]} 61. Qff4 {[%clk 0:00:04]} 61... Qd5+ {[%clk 0:00:04.1]}
62. Qf3 {[%clk 0:00:04.6]} 62... Qe5 {[%clk 0:00:04.2]} 63. Qhh5+ {[%clk
0:00:05]} 63... Kg7 {[%clk 0:00:04.1]} 64. Qg5+ {[%clk 0:00:05]} 64... Kf7
{[%clk 0:00:04.4]} 65. Qgf4 {[%clk 0:00:05.9]} 65... Qb2 {[%clk 0:00:03.7]} 66.
Q4e3 {[%clk 0:00:06.8]} 66... Qb6 {[%clk 0:00:03.7]} 67. Qc3 {[%clk 0:00:07.1]}
67... Qd6 {[%clk 0:00:03.3]} 68. Qcc6 {[%clk 0:00:08]} 68... Qe5 {[%clk
0:00:03]} 69. Qb7+ {[%clk 0:00:08.9]} 69... Kf6 {[%clk 0:00:02.6]} 70. Qbc6
{[%clk 0:00:09]} 1-0